bitfinex/quotes_ETHUSD_20250906
["timestamp","ask_amount","ask_price","bid_price","bid_amount"]
[1757154197535,2.2224,4286.3,4286.2,10.941]
[1757154199133,2.2224,4286.3,4286.2,7.075]
[1757154199331,2.44474,4286.3,4286.2,10.94]
[1757154204245,2.2224,4286.3,4286.2,12.33984135]
[1757154204451,1.9149,4286.3,4286.2,12.33984135]
[1757154204837,0.001,4286.3,4286.2,12.33984135]
[1757154205581,0.001,4286.3,4286.2,18.77184135]
[1757154206265,0.001,4286.3,4286.2,7.075]
[1757154206973,0.001,4286.3,4286.2,8.47484135]
[1757154207545,0.001,4286.3,4286.2,12.33984135]
[1757154209501,0.4306,4286.3,4286.2,12.33984135]
[1757154210697,0.001,4286.3,4286.2,12.33984135]
[1757154212299,0.4306,4286.3,4286.2,12.33984135]
[1757154212906,0.4306,4286.3,4286.2,10.94]
[1757154213102,2.2224,4286.3,4286.2,10.94]
[1757154213309,2.44474,4286.3,4286.2,7.075]
[1757154213604,2.44474,4286.3,4286.2,10.94]
[1757154215378,2.44474,4286.3,4286.2,17.372]
[1757154216411,2.44474,4286.3,4286.2,7.075]
[1757154216573,4.77775448,4286.3,4286.2,7.075]
[1757154216776,5.47743111,4286.3,4286.2,7.075]
[1757154217713,5.47743111,4286.3,4286.2,10.942]
[1757154217916,5.47743111,4286.3,4286.2,7.075]
[1757154218080,5.47743111,4286.3,4286.2,10.942]
[1757154220319,5.47743111,4286.3,4286.2,7.075]
[1757154220520,6.26943111,4286.3,4286.2,7.075]
[1757154220718,6.26943111,4286.3,4286.2,10.941]
[1757154222016,6.26943111,4286.3,4286.2,7.075]
[1757154222223,6.26943111,4286.3,4286.2,10.941]
[1757154223960,6.26943111,4286.3,4286.2,7.075]
[1757154224248,6.26943111,4286.3,4286.2,10.941]
[1757154224613,6.26943111,4286.3,4286.2,7.075]
[1757154224829,6.26943111,4286.3,4286.2,10.941]
[1757154225214,5.56975448,4286.3,4286.2,10.941]
[1757154225411,6.26950618,4286.3,4286.2,17.373]
[1757154226249,2.33324772,4285.9,4284.8,1.42526876]
[1757154226453,2.33324772,4285.9,4285.8,1.715]
[1757154226627,2.63434772,4285.9,4285.8,1.715]
[1757154226946,0.6997517,4286.0,4285.8,1.715]
[1757154227452,1.5041,4285.9,4285.4,1.40009172]
[1757154227752,0.60726173,4286.0,4285.5,3.865]
[1757154227949,0.69971744,4285.8,4285.5,3.865]
[1757154228311,3.19334829,4286.2,4285.5,3.865]
[1757154228510,3.19334829,4286.2,4285.4,1.40007414]
[1757154228725,1.9562,4286.1,4285.5,3.865]
[1757154228941,1.9562,4286.1,4285.5,5.26506745]
[1757154229138,0.69971743,4285.7,4285.5,5.26506745]
[1757154229366,0.69971743,4285.7,4285.6,1.40003733]
[1757154229536,3.57811847,4286.3,4285.5,5.26506023]
[1757154229743,0.72887263,4286.2,4285.5,3.865]
[1757154229943,0.34780726,4286.1,4285.4,1.40009962]
[1757154230142,4.63714394,4286.1,4285.5,3.865]
[1757154230866,2.30400726,4286.1,4285.5,3.865]
[1757154231042,0.4521,4286.0,4285.6,3.865]
[1757154231245,1.9562,4285.9,4285.6,3.865]
[1757154231646,0.4521,4285.8,4285.6,3.865]
[1757154232237,0.4521,4285.8,4285.7,3.865]
[1757154232434,5.1242768,4285.8,4283.3,1.40078464]
[1757154232631,5.82403667,4285.8,4285.0,1.40021009]
[1757154232835,0.4521,4285.7,4284.8,1.40029873]
[1757154233051,0.4521,4285.7,4285.1,1.40018215]
[1757154233249,1.63417307,4285.7,4285.1,1.40018215]
[1757154233651,1.63417307,4285.7,4285.2,3.866]
[1757154233861,1.9562,4285.6,4285.2,3.866]
[1757154234037,0.4521,4285.5,4285.2,3.866]
[1757154234752,0.4521,4285.5,4285.3,3.866]
[1757154235240,1.9562,4285.5,4284.8,1.40029873]
[1757154235454,1.9562,4285.5,4285.4,1.715]
[1757154235893,1.9562,4285.5,4285.4,7.076]
[1757154236241,1.9562,4285.5,4285.4,1.715]
[1757154236462,1.9562,4285.5,4285.4,4.713]
[1757154236686,1.9562,4285.5,4284.4,1.40040644]
[1757154236854,0.116,4285.1,4285.0,1.40023337]
[1757154237187,0.00347903,4285.1,4285.0,1.40023337]
[1757154238306,0.00347903,4285.1,4285.0,5.26623337]
[1757154238856,0.116,4285.3,4285.0,3.866]
[1757154239374,0.116,4285.3,4285.0,4.56571091]
[1757154239685,0.116,4285.3,4285.0,3.866]
[1757154239860,0.116,4285.3,4285.1,0.4521]
[1757154240378,0.116,4285.3,4285.2,3.866]
[1757154240756,0.116,4285.3,4285.2,5.26616802]
[1757154240958,0.116,4285.3,4285.2,3.866]
[1757154241192,0.116,4285.3,4285.2,0.69972069]
[1757154241398,0.116,4285.3,4285.2,4.56572069]
[1757154241892,0.5681,4285.3,4285.2,3.866]
[1757154242987,0.5681,4285.3,4285.1,0.6997517]
[1757154243294,1.6201,4285.3,4285.2,3.866]
[1757154243496,2.08321,4285.3,4283.3,1.41446843]
[1757154243691,0.116,4285.1,4283.8,0.116]
[1757154243897,0.116,4284.5,4284.1,1.16710268]
[1757154244101,0.116,4284.5,4284.2,30.0]
[1757154244271,0.116,4284.5,4283.9,1.94183496]
[1757154244272,0.116,4284.5,4284.3,3.866]
[1757154244602,0.116,4284.5,4284.3,5.03304679]
[1757154244801,0.116,4284.5,4284.4,3.866]
[1757154245366,0.116,4284.5,4284.4,19.14683496]
[1757154245704,0.116,4284.5,4284.4,20.86183496]
[1757154246403,1.8052,4284.5,4284.4,7.076]
[1757154246606,2.33415054,4284.3,4283.7,0.67259863]
[1757154246816,0.3011,4283.8,4281.6,0.19395364]
[1757154246969,0.3011,4283.8,4282.4,0.70011587]
[1757154246970,3.86772121,4283.7,4282.4,0.70011587]
[1757154247163,3.83853295,4283.7,4282.5,0.112]
[1757154247369,0.86513436,4283.6,4282.6,1.066]
[1757154247676,0.3011,4282.7,4282.1,1.16763197]
[1757154247876,0.3011,4282.7,4282.2,3.052]
[1757154248078,0.4521,4282.6,4282.2,0.70014038]
[1757154248309,1.08396917,4283.6,4282.3,2.449]
[1757154248310,1.5041,4283.3,4282.3,2.449]
[1757154248525,0.4521,4283.8,4282.5,4.16754232]
[1757154248695,2.33436715,4283.9,4282.6,33.40749375]
[1757154249020,2.3338288,4284.9,4282.8,1.16746053]
[1757154249326,0.4521,4284.7,4282.9,30.0]
[1757154249606,2.33431248,4284.0,4283.0,6.892]
[1757154249778,1.8671,4283.9,4282.7,0.17555961]
[1757154249984,4.20143234,4283.9,4282.2,0.70014855]
[1757154250331,0.4638,4283.8,4282.4,3.0]
[1757154250472,0.025,4282.8,4282.7,1.16748779]
[1757154250678,0.7251077,4283.8,4282.7,1.16748779]
[1757154250679,0.025,4283.8,4283.7,1.16721525]
[1757154250906,0.025,4283.8,4283.7,5.06421525]
[1757154251087,0.025,4283.8,4283.7,38.06421525]
[1757154253184,0.025,4283.8,4283.7,34.16721525]
[1757154253397,0.025,4283.8,4283.7,38.06921525]
[1757154254173,0.025,4283.8,4283.7,38.53301525]
[1757154255513,0.025,4283.8,4283.7,54.83201525]
[1757154256375,0.025,4283.8,4283.7,23.201]
[1757154256594,0.025,4283.8,4283.7,23.6648]
[1757154257397,0.025,4283.8,4283.7,24.83201525]
[1757154257982,0.025,4283.8,4283.7,20.93001525]
[1757154258313,0.025,4283.8,4283.7,24.84201525]
[1757154259929,0.025,4283.8,4283.7,22.05401525]
[1757154260226,0.025,4283.8,4283.7,45.62001525]
[1757154260726,0.025,4284.8,4284.5,1.16697073]
[1757154260925,0.025,4284.8,4284.7,1.716]
[1757154261097,0.025,4284.8,4284.7,5.628]
[1757154261290,0.025,4284.8,4284.7,6.79494284]
[1757154261489,0.025,4284.8,4284.7,36.79494284]
[1757154261925,0.025,4284.8,4284.7,37.25874284]
[1757154262326,0.025,4284.8,4284.7,38.54274284]
[1757154262530,0.025,4284.8,4284.7,38.67324284]
[1757154262702,0.025,4284.8,4284.7,34.63074284]
[1757154263106,0.025,4284.8,4284.7,38.54374284]
[1757154264626,0.025,4284.8,4284.7,38.54274284]
[1757154265507,0.025,4284.8,4284.7,54.84174284]
[1757154266336,0.025,4284.8,4284.7,54.95774284]
[1757154266942,0.025,4284.8,4284.7,54.95574284]
[1757154267803,0.3366,4284.8,4284.7,45.73374284]
[1757154268044,0.8004,4284.8,4284.7,45.61774284]
[1757154271626,2.2047,4284.8,4284.7,38.53874284]
[1757154271936,2.2047,4284.8,4284.7,8.53874284]
[1757154272503,2.43677,4284.8,4284.7,0.4638]
[1757154272956,2.43677,4284.8,4284.7,3.7748]
[1757154273147,2.43677,4284.8,4284.7,3.311]
[1757154273851,2.43677,4284.8,4284.7,3.908]
[1757154274433,2.43677,4284.8,4284.7,5.07494284]
[1757154274624,2.43677,4284.8,4284.7,3.908]
[1757154275053,2.43677,4284.8,4284.7,5.07494284]
[1757154275422,2.43677,4284.8,4284.7,17.418]
[1757154275616,2.43677,4284.8,4284.7,18.58494284]
[1757154277249,0.026,4284.8,4284.7,18.58494284]
[1757154277449,0.026,4284.8,4284.7,48.58494284]
[1757154277892,0.026,4284.8,4284.7,51.58494284]
[1757154278076,0.001,4285.3,4285.2,1.16680668]
[1757154278246,0.001,4285.3,4285.2,5.07480668]
[1757154278452,0.7764,4285.3,4285.2,5.07480668]
[1757154278692,0.4648,4285.3,4285.2,5.07480668]
[1757154278892,0.001,4285.3,4285.2,5.07480668]
[1757154279690,0.001,4285.3,4285.2,1.16680668]
[1757154279889,2.2894,4285.3,4285.2,5.07680668]
[1757154280093,2.4054,4285.3,4285.2,5.07680668]
[1757154280496,0.5656,4285.3,4285.2,5.07680668]
[1757154280991,0.001,4285.3,4285.2,5.07680668]
[1757154281371,0.001,4285.3,4285.2,35.07680668]
[1757154285200,0.3054,4285.3,4285.2,35.07580668]
[1757154285511,0.001,4285.3,4285.2,37.86380668]
[1757154287567,2.2822,4285.3,4285.2,3.906]
[1757154287881,2.2822,4285.3,4285.2,5.07280668]
[1757154289407,2.2822,4285.3,4285.0,1.28284304]
[1757154289568,1.8336,4285.3,4285.2,1.16680668]
[1757154289767,2.2822,4285.3,4285.2,1.16680668]
[1757154290583,2.2822,4285.3,4285.2,5.07280668]
[1757154291814,2.51042,4285.3,4285.2,1.16680668]
[1757154291980,2.51042,4285.3,4285.2,5.07180668]
[1757154292180,2.2822,4285.3,4285.2,5.07180668]
[1757154293745,2.2822,4285.3,4285.2,1.16680668]
[1757154294035,0.142,4285.8,4285.7,1.16667055]
[1757154294247,0.142,4285.8,4285.7,5.07067055]
[1757154294405,2.4232,4285.8,4285.7,5.07067055]
[1757154295546,2.4232,4285.8,4285.7,21.36667055]
[1757154301222,0.895,4285.8,4285.7,21.36667055]
[1757154301427,0.142,4285.8,4285.7,21.36667055]
[1757154301627,0.5906,4285.8,4285.7,21.36667055]
[1757154301863,0.895,4285.8,4285.7,21.36667055]
[1757154302981,2.4232,4285.8,4285.7,21.36667055]
[1757154304286,2.66552,4285.8,4285.7,21.36667055]
[1757154304480,2.66552,4285.8,4285.7,16.296]
[1757154304650,2.66552,4285.8,4285.7,10.977]
[1757154305489,2.66552,4285.8,4285.7,17.41]
[1757154306581,2.66552,4285.8,4285.7,13.509]
[1757154306780,2.66552,4285.8,4285.7,17.41]
[1757154308376,4.99880666,4285.8,4285.7,13.509]
[1757154308580,2.66552,4285.8,4285.7,17.411]
[1757154311379,4.99880666,4285.8,4285.7,17.411]
[1757154311569,2.66552,4285.8,4285.7,17.411]
[1757154314605,2.66552,4285.8,4284.8,0.004]
[1757154314807,2.54952,4285.8,4285.7,7.076]
[1757154315232,2.54952,4285.8,4285.4,1.16674652]
[1757154315445,0.4457,4285.7,4285.5,11.794]
[1757154315727,1.4874,4285.7,4285.6,1.715]
[1757154315887,0.26832,4285.8,4285.6,10.975]
[1757154316088,1.8011,4285.7,4285.2,1.16680016]
[1757154316420,2.140042,4285.6,4285.2,1.16680016]
[1757154316620,1.9331,4285.5,4285.1,1.16682515]
[1757154316994,0.4457,4285.4,4285.1,1.16682515]
[1757154317294,0.4457,4285.3,4285.2,3.421]
[1757154317728,0.206942,4285.6,4284.1,0.00592768]
[1757154317892,0.4457,4285.6,4284.2,28.462]
[1757154318093,0.4457,4285.6,4284.3,3.0]
[1757154318331,0.4457,4285.6,4284.4,33.0]
[1757154318538,0.4457,4285.6,4284.5,30.0]
[1757154319032,0.4457,4285.6,4284.6,3.898]
[1757154319235,0.4457,4285.6,4284.7,30.0]
[1757154319530,0.4457,4285.6,4284.8,3.898]
[1757154320097,1.75572,4285.8,4284.8,3.898]
[1757154320615,0.26832,4285.8,4284.9,30.0]
[1757154320816,0.026,4285.8,4284.9,30.0]
[1757154321997,0.026,4285.8,4285.7,1.16667055]
[1757154322192,0.026,4285.8,4285.7,5.06467055]
[1757154325651,0.026,4285.8,4285.7,21.36067055]
[1757154332268,0.4717,4285.8,4285.7,21.36067055]
[1757154332693,2.2728,4285.8,4285.7,21.36067055]
[1757154333540,0.7854,4285.8,4285.7,21.36067055]
[1757154333940,0.026,4285.8,4285.7,21.36067055]
[1757154335382,0.026,4285.8,4285.7,21.80637055]
[1757154341181,0.4653,4285.8,4285.7,21.80637055]
[1757154341391,2.3959,4285.8,4285.7,21.80637055]
[1757154341946,2.3959,4285.8,4285.7,21.79837055]
[1757154343757,0.026,4285.8,4285.7,21.79837055]
[1757154343985,0.00029541,4285.8,4285.7,21.79837055]
[1757154344488,0.00029541,4285.8,4285.7,24.79837055]
[1757154344688,0.001,4286.3,4286.2,1.16653445]
[1757154344852,0.001,4286.3,4286.2,5.05953445]
[1757154345562,0.001,4286.3,4286.2,1.60683445]
[1757154345894,0.7558,4286.3,4286.2,5.49983445]
[1757154346089,0.4403,4286.3,4286.2,5.49983445]
[1757154347680,2.3709,4286.3,4286.2,5.49883445]
[1757154347881,2.60809,4286.3,4286.2,5.49883445]
[1757154348075,2.60809,4286.3,4286.2,1.60683445]
[1757154348297,2.60809,4286.3,4286.2,4.3333]
[1757154348795,2.60809,4286.3,4286.2,5.05953445]
[1757154349981,2.60809,4286.3,4286.2,3.893]
[1757154350371,2.60809,4286.3,4286.2,5.05953445]
[1757154356095,0.001,4286.3,4286.2,38.05953445]
[1757154356324,2.411e-05,4286.3,4286.2,38.17553445]
[1757154356765,2.411e-05,4286.3,4286.2,38.87494683]
[1757154358161,2.411e-05,4286.3,4286.2,8.87494683]
[1757154358535,2.411e-05,4286.3,4286.2,38.87494683]
[1757154361768,0.31552411,4286.3,4286.2,38.87594683]
[1757154362068,2.36992411,4286.3,4286.2,38.75994683]
[1757154362269,0.43932411,4286.3,4286.2,38.75994683]
[1757154363261,0.43932411,4286.3,4286.2,8.75994683]
[1757154363775,0.43932411,4286.3,4286.2,38.75994683]
[1757154365082,2.36992411,4286.3,4286.2,0.69941238]
[1757154365375,2.58706652,4286.3,4286.2,11.54694683]
[1757154365675,2.36992411,4286.3,4286.2,24.35453445]
[1757154371794,2.411e-05,4286.3,4286.2,24.35453445]
[1757154371993,0.117,4286.6,4286.5,1.16645281]
[1757154372151,0.001,4286.6,4286.5,38.05845281]
[1757154372679,0.001,4286.6,4286.5,38.15170496]
[1757154375355,0.001,4286.6,4286.5,47.36970496]
[1757154380277,0.001,4286.6,4286.5,38.15170496]
[1757154382105,0.00067437,4286.8,4286.7,1.16639839]
[1757154382315,0.00067437,4286.8,4286.7,8.05639839]
[1757154383101,0.00067437,4286.8,4286.7,8.17239839]
[1757154383303,0.00067437,4286.8,4286.7,8.61739839]
[1757154383895,0.00067437,4286.8,4286.7,8.79148435]
[1757154384596,0.00067437,4286.8,4286.7,38.79148435]
[1757154385106,0.00067437,4286.8,4286.7,38.67548435]
[1757154385309,0.00067437,4286.8,4286.7,38.79148435]
[1757154385471,0.00067437,4286.8,4286.7,55.08248435]
[1757154386185,0.446,4287.1,4287.0,1.16631677]
[1757154386398,0.446,4287.1,4287.0,38.05531677]
[1757154386594,0.446,4287.1,4287.0,38.17131677]
[1757154386772,0.446,4287.1,4287.0,38.87059547]
[1757154388507,0.001,4287.1,4287.0,38.87059547]
[1757154388810,1.9004,4287.1,4287.0,38.87059547]
[1757154390631,0.446,4287.1,4287.0,38.87059547]
[1757154391127,1.9004,4287.1,4287.0,38.87059547]
[1757154391418,2.1957,4287.1,4287.0,38.87059547]
[1757154391911,1.81708604,4287.1,4287.0,38.87059547]
[1757154392116,1.7497,4287.1,4287.0,4.98159547]
[1757154392281,1.7497,4287.1,4287.0,4.5852787]
[1757154392483,1.7497,4287.1,4287.0,0.6992787]
[1757154392697,1.7497,4287.1,4287.0,4.5872787]
[1757154394014,2.1947,4287.1,4287.0,4.5872787]
[1757154394605,2.1947,4287.1,4287.0,5.75359547]
[1757154395389,2.1947,4287.1,4287.0,22.04259547]
[1757154396830,2.1947,4287.1,4287.0,25.04259547]
[1757154397024,2.1947,4287.1,4287.0,23.8742787]
[1757154397328,2.1947,4287.1,4287.0,25.04059547]
[1757154398704,2.1957,4287.1,4287.0,25.04059547]
[1757154400193,0.001,4287.1,4287.0,25.34959547]
[1757154400392,0.001,4287.1,4287.0,55.84329547]
[1757154401020,0.001,4287.1,4287.0,55.46559547]
[1757154401831,0.001,4287.1,4287.0,53.05729547]
[1757154402035,8.29e-05,4287.2,4287.1,4.16628956]
[1757154402234,8.29e-05,4287.2,4287.1,34.16628956]
[1757154402537,8.29e-05,4287.2,4287.1,34.47528956]
[1757154403066,8.29e-05,4287.2,4287.1,34.85298956]
[1757154403236,8.29e-05,4287.2,4287.1,34.96998956]
[1757154403530,8.29e-05,4287.2,4287.1,34.59228956]
[1757154404232,8.29e-05,4287.2,4287.1,34.96998956]
[1757154404436,8.29e-05,4287.2,4287.1,4.96998956]
[1757154404640,8.29e-05,4287.2,4287.1,34.96998956]
[1757154405140,0.001,4287.6,4287.5,1.16618075]
[1757154405431,0.001,4287.6,4287.5,54.46207561]
[1757154405636,0.001,4287.6,4287.5,54.76518075]
[1757154405831,0.001,4287.6,4287.5,54.8584053]
[1757154407840,0.001,4287.6,4287.5,38.5694053]
[1757154408017,0.001,4287.6,4287.5,38.9471053]
[1757154408338,0.001,4287.6,4287.5,38.5694053]
[1757154408544,0.001,4287.6,4287.5,38.9471053]
[1757154408740,0.001,4287.6,4287.5,38.5694053]
[1757154409039,0.001,4288.5,4287.9,1.16607196]
[1757154409203,1.4624,4288.3,4287.9,38.05107196]
[1757154409425,1.4624,4288.3,4287.9,38.36007196]
[1757154410026,1.7503,4288.0,4287.9,34.47507196]
[1757154410226,2.2017,4288.0,4287.9,8.05107196]
[1757154411023,2.2017,4288.0,4287.9,8.05307196]
[1757154411236,2.2017,4288.0,4287.9,8.75224472]
[1757154411437,2.2017,4288.0,4287.9,4.86524472]
[1757154411737,2.2017,4288.0,4287.9,8.75124472]
[1757154415358,2.2017,4288.0,4287.9,11.53724472]
[1757154415573,2.2017,4288.0,4287.9,25.03824472]
[1757154415724,1.4634,4288.0,4287.9,25.03824472]
[1757154416259,0.001,4288.0,4287.9,25.34724472]
[1757154416429,0.001,4288.0,4287.9,55.34724472]
[1757154416630,5.685e-05,4288.0,4287.9,55.72494472]
[1757154416851,5.685e-05,4288.0,4287.9,52.93894472]
[1757154417038,5.685e-05,4288.0,4287.9,41.15194472]
[1757154417551,5.685e-05,4288.0,4287.9,39.43794472]
[1757154418095,5.685e-05,4288.0,4287.9,39.05924472]
[1757154418480,5.685e-05,4288.0,4287.9,35.17424472]
[1757154418772,5.685e-05,4288.0,4287.9,39.06024472]
[1757154418962,5.685e-05,4288.0,4287.9,38.86724472]
[1757154420380,5.685e-05,4288.0,4287.9,39.17624472]
[1757154420763,2.20075685,4288.0,4287.9,34.98124472]
[1757154421076,2.20075685,4288.0,4287.9,38.86624472]
[1757154421237,1.74935685,4288.0,4287.9,38.86624472]
[1757154421438,1.46245685,4288.0,4287.9,38.86624472]
[1757154421636,1.46245685,4288.0,4287.9,8.86624472]
[1757154422053,1.46245685,4288.0,4287.9,38.86624472]
[1757154422281,1.46245685,4288.0,4287.9,34.98124472]
[1757154422493,1.46245685,4288.0,4287.9,38.86624472]
[1757154423961,1.46245685,4288.0,4287.9,8.86624472]
[1757154424155,1.46245685,4288.0,4287.9,4.98124472]
[1757154424378,1.46245685,4288.0,4287.9,38.86624472]
[1757154424666,2.20075685,4288.0,4287.9,38.86624472]
[1757154425402,1.46245685,4288.0,4287.9,48.08024472]
[1757154425553,1.46245685,4288.0,4287.9,55.15124472]
[1757154426666,1.08394305,4288.0,4287.9,55.15124472]
[1757154427280,1.82224305,4288.0,4287.9,55.14924472]
[1757154428193,1.82224305,4288.0,4287.9,52.24824472]
[1757154429967,1.82224305,4288.0,4287.9,38.74824472]
[1757154432386,1.37084305,4288.0,4287.9,38.74824472]
[1757154432581,1.08394305,4288.0,4287.9,38.74824472]
[1757154432901,0.4367,4288.2,4288.1,1.16601758]
[1757154433098,1.9388,4288.2,4288.1,8.04801758]
[1757154433401,2.242,4288.2,4288.1,8.04801758]
[1757154433601,2.242,4288.2,4288.1,8.74720174]
[1757154434397,2.242,4288.2,4288.1,8.74620174]
[1757154434591,0.001,4288.2,4288.1,8.74620174]
[1757154435483,0.001,4288.2,4288.1,25.03120174]
[1757154435878,1.5031,4288.2,4288.1,25.03120174]
[1757154436098,0.001,4288.2,4288.1,25.03120174]
[1757154436302,1.8063,4288.2,4288.1,25.03120174]
[1757154436799,1.42777834,4288.2,4288.1,25.03120174]
[1757154440716,1.86347834,4288.2,4288.1,25.03120174]
[1757154446034,0.116,4288.4,4288.3,1.1659632]
[1757154446202,0.116,4288.4,4288.3,5.0439632]
[1757154446540,0.4192,4288.4,4288.3,5.0439632]
[1757154446839,2.357,4288.4,4288.3,5.0439632]
[1757154447545,2.357,4288.4,4288.3,5.0429632]
[1757154451829,2.357,4288.4,4288.3,1.1659632]
[1757154451830,2.358,4288.4,4288.3,1.1659632]
[1757154452029,2.358,4288.4,4288.3,5.0429632]
[1757154452741,2.358,4288.4,4288.3,1.1659632]
[1757154452910,2.358,4288.4,4288.3,5.0429632]
[1757154456535,1.6191,4288.4,4288.3,5.0429632]
[1757154456732,0.117,4288.4,4288.3,5.3315632]
[1757154459516,0.001,4288.4,4288.3,5.3315632]
[1757154460557,0.001,4288.4,4288.3,8.3315632]
[1757154460755,0.001,4288.4,4288.3,8.8252632]
[1757154461268,0.001,4288.4,4288.3,8.4475632]
[1757154461755,0.001,4288.4,4288.3,8.8252632]
[1757154462344,0.001,4288.4,4288.3,8.4475632]
[1757154465464,0.001,4288.4,4288.3,17.6615632]
[1757154466533,1.677,4288.4,4288.3,13.4959632]
[1757154466854,2.1396,4288.4,4288.3,13.4959632]
[1757154467050,2.1396,4288.4,4288.3,17.2559632]
[1757154468940,2.1396,4288.4,4288.3,14.4709632]
[1757154471675,2.1396,4288.4,4288.3,10.5949632]
[1757154471837,2.1396,4288.4,4288.3,14.4709632]
[1757154472176,1.677,4288.4,4288.3,10.5949632]
[1757154472337,2.1396,4288.4,4288.3,14.4709632]
[1757154474907,0.001,4288.4,4288.3,14.7577632]
[1757154475400,0.001,4288.4,4288.3,17.5427632]
[1757154475698,0.001,4288.4,4288.3,17.2559632]
[1757154476493,1.8518,4288.4,4288.3,17.2559632]
[1757154476695,2.1396,4288.4,4288.3,17.2559632]
[1757154478339,1.677,4288.4,4288.3,13.3799632]
[1757154478543,2.1396,4288.4,4288.3,13.3799632]
[1757154478846,2.1396,4288.4,4288.3,17.2559632]
[1757154479519,2.1396,4288.4,4288.3,18.9699632]
[1757154480803,2.1396,4288.4,4288.3,15.0939632]
[1757154481004,2.1396,4288.4,4288.3,18.9699632]
[1757154481818,1.8518,4288.4,4288.3,18.9699632]
[1757154482142,0.001,4288.4,4288.3,19.2567632]
[1757154484222,0.001,4288.4,4288.3,24.6137632]
[1757154487260,0.00015004,4288.4,4288.3,24.6137632]
[1757154491172,0.00015004,4288.4,4288.3,15.5157632]
[1757154491340,0.00015004,4288.4,4288.3,10.1587632]
[1757154495041,0.00015004,4288.4,4288.3,8.4447632]
[1757154495456,0.001,4288.5,4288.4,4.39912321]
[1757154495745,0.001,4288.5,4288.4,34.39912321]
[1757154495946,0.001,4288.5,4288.4,34.69122321]
[1757154496654,0.001,4288.5,4288.4,34.78442974]
[1757154497259,0.00201459,4288.8,4288.7,1.39902534]
[1757154497452,0.00201459,4288.8,4288.7,38.27502534]
[1757154497658,0.00201459,4288.8,4288.7,38.56712534]
[1757154497875,0.00201459,4288.8,4288.7,39.26612949]
[1757154498042,2.23491459,4288.8,4288.7,39.09002949]
[1757154498242,2.23491459,4288.8,4288.7,38.97402949]
[1757154500763,2.23491459,4288.8,4288.7,35.09802949]
[1757154500964,2.23491459,4288.8,4288.7,38.97402949]
[1757154503177,2.23491459,4288.8,4288.7,35.09802949]
[1757154503410,2.23491459,4288.8,4288.7,38.97302949]
[1757154505378,2.23591459,4288.8,4288.7,53.54202949]
[1757154505584,2.23591459,4288.8,4288.7,55.25602949]
[1757154507322,1.8574423,4288.8,4288.7,55.25602949]
[1757154507529,2.1585423,4288.8,4288.7,55.25602949]
[1757154507734,1.7003423,4288.8,4288.7,55.25602949]
[1757154508436,0.001,4288.8,4288.7,55.54812949]
[1757154509531,0.001,4288.8,4288.7,55.25602949]
[1757154512739,0.001,4288.8,4288.7,55.54812949]
[1757154513200,0.001,4288.8,4288.7,51.67312949]
[1757154513407,0.001,4288.8,4288.7,55.54812949]
[1757154517322,0.00917918,4289.0,4288.9,1.3989601]
[1757154517649,0.00917918,4289.0,4288.9,8.44745055]
[1757154518037,0.00917918,4289.0,4288.9,9.14651741]
[1757154520465,1.42007918,4289.0,4288.9,9.14651741]
[1757154520837,0.001,4289.2,4289.0,4.39892748]
[1757154521060,1.4119,4289.2,4289.1,6.875]
[1757154521258,0.001,4289.2,4289.1,8.27389487]
[1757154521464,2.1721,4289.2,4289.1,8.97292427]
[1757154523775,1.6974,4289.2,4289.1,8.97292427]
[1757154524162,2.1721,4289.2,4289.1,8.97292427]
[1757154524969,0.001,4289.2,4289.1,8.97292427]
[1757154525176,1.4119,4289.2,4289.1,8.97292427]
[1757154525374,1.4119,4289.2,4289.1,11.75792427]
[1757154525546,0.001,4289.2,4289.1,12.06002427]
[1757154526941,0.001,4289.2,4289.1,11.75792427]
[1757154527481,8.244e-05,4289.2,4289.1,11.75792427]
[1757154527880,8.244e-05,4289.2,4289.1,12.06002427]
[1757154532290,2.17118244,4289.2,4289.1,11.75792427]
[1757154533247,2.17118244,4289.2,4289.1,5.09792427]
[1757154533455,2.17118244,4289.2,4289.1,8.97192427]
[1757154534545,8.244e-05,4289.2,4289.1,8.97192427]
[1757154534787,8.244e-05,4289.2,4289.1,9.27402427]
[1757154534981,8.244e-05,4289.2,4289.1,8.97192427]
[1757154535490,8.244e-05,4289.2,4289.1,23.53992427]
[1757154535785,8.244e-05,4289.2,4289.1,19.66592427]
[1757154535992,8.244e-05,4289.2,4289.1,23.53992427]
[1757154537394,1.982e-05,4289.3,4289.2,1.39886225]
[1757154537590,1.41091982,4289.3,4289.2,1.39886225]
[1757154537963,1.69641982,4289.3,4289.2,2.0978493]
[1757154538187,2.17111982,4289.3,4289.2,2.0978493]
[1757154540879,2.17111982,4289.3,4289.2,5.9718493]
[1757154542794,2.17111982,4289.3,4289.2,7.6858493]
[1757154542991,2.17111982,4289.3,4289.2,3.8118493]
[1757154543295,2.17111982,4289.3,4289.2,7.6858493]
[1757154544373,1.69641982,4289.3,4289.2,7.6858493]
[1757154545081,1.69641982,4289.3,4289.2,3.8118493]
[1757154545382,1.69641982,4289.3,4289.2,7.6858493]
[1757154546598,1.69641982,4289.3,4289.2,3.8118493]
[1757154546783,1.69641982,4289.3,4289.2,7.6858493]
[1757154547700,1.69641982,4289.3,4289.2,3.8118493]
[1757154547899,1.69641982,4289.3,4289.2,7.6858493]
[1757154548097,1.41091982,4289.3,4289.2,7.6858493]
[1757154548272,1.982e-05,4289.3,4289.2,7.6858493]
[1757154548690,1.982e-05,4289.3,4289.2,7.9879493]
[1757154549576,1.982e-05,4289.3,4289.2,4.1139493]
[1757154549776,1.982e-05,4289.3,4289.2,7.6858493]
[1757154549974,1.42861982,4289.3,4289.2,7.6858493]
[1757154551277,1.73611982,4289.3,4289.2,3.8118493]
[1757154551503,1.982e-05,4289.3,4289.2,7.6858493]
[1757154551911,1.42861982,4289.3,4289.2,7.6858493]
[1757154552228,1.73611982,4289.3,4289.2,7.6858493]
[1757154552417,2.17491982,4289.3,4289.2,7.6858493]